bitfinex-derivatives/quotes_ETHF0:USTF0_20250502
["timestamp","ask_amount","ask_price","bid_price","bid_amount"]
[1746165346034,2.35305,1833.2,1833.1,2.23363134]
[1746165346442,1.71054799,1833.2,1833.1,3.32440134]
[1746165346636,2.80125799,1833.2,1833.1,2.23363134]
[1746165347038,2.80125799,1833.2,1833.1,3.86803134]
[1746165347738,2.80125799,1833.2,1833.1,2.23363134]
[1746165347945,1.09083,1833.0,1832.9,2.72529]
[1746165348336,1.09083,1833.0,1832.9,4.95892134]
[1746165348538,2.11804799,1833.0,1832.9,4.95892134]
[1746165348847,0.44824799,1833.0,1832.9,4.95892134]
[1746165350046,1.53907799,1833.0,1832.9,3.86803134]
[1746165351336,1.53907799,1833.0,1832.9,4.95892134]
[1746165351535,0.44824799,1833.0,1832.9,4.95892134]
[1746165353344,1.09075,1833.2,1833.0,1.09079]
[1746165353542,1.09075,1833.2,1833.1,3.82113134]
[1746165353744,1.54295659,1833.2,1833.1,3.82113134]
[1746165353945,0.90195865,1833.2,1833.1,4.91190134]
[1746165354143,1.54046206,1833.2,1833.1,3.82113134]
[1746165354346,1.992621,1833.2,1833.1,3.82113134]
[1746165354549,0.901911,1833.2,1833.1,4.91190134]
[1746165354840,1.99262618,1833.2,1833.1,3.82113134]
[1746165355044,4.10971618,1833.2,1833.1,4.91190134]
[1746165355351,0.90191618,1833.2,1833.1,4.91190134]
[1746165356051,0.90191618,1833.2,1833.1,3.82113134]
[1746165356250,1.99262618,1833.2,1833.1,3.82113134]
[1746165356454,1.99261883,1833.2,1833.1,3.82113134]
[1746165357552,1.99261883,1833.2,1833.1,4.91190134]
[1746165357947,1.99261883,1833.2,1833.1,3.82113134]
[1746165358156,1.99261883,1833.2,1833.1,1.5875]
[1746165358347,1.99261883,1833.2,1833.1,2.67827]
[1746165360155,1.99263828,1833.2,1833.1,2.67827]
[1746165360353,0.90192828,1833.2,1833.1,2.67827]
[1746165360654,1.99263828,1833.2,1833.1,2.67827]
[1746165360854,0.90192828,1833.2,1833.1,4.91190134]
[1746165361657,0.44975206,1833.2,1833.1,4.91190134]
[1746165361857,1.54046206,1833.2,1833.1,4.91190134]
[1746165362352,9.10968035,1833.2,1832.0,3.79000187]
[1746165362559,3.2078,1832.2,1831.9,1.6948]
[1746165362751,3.2078,1832.2,1832.0,1.09141]
[1746165362952,3.2078,1832.2,1832.1,3.96397]
[1746165363151,3.2078,1832.4,1832.1,2.8726]
[1746165363356,3.2078,1832.4,1832.3,1.09125]
[1746165363661,0.44903971,1832.3,1832.2,2.8939]
[1746165363955,0.44903971,1832.3,1832.2,3.98521]
[1746165364551,0.44903971,1832.3,1832.2,2.8939]
[1746165364953,3.2078,1832.4,1832.2,2.8939]
[1746165365158,3.2078,1832.4,1832.3,1.6158]
[1746165365452,3.6563592,1832.4,1832.3,1.6158]
[1746165366048,1.09131,1832.2,1832.1,5.1418]
[1746165366252,4.29911,1832.2,1832.1,5.1418]
[1746165366459,4.7476692,1832.2,1832.1,5.1418]
[1746165367152,4.7476692,1832.2,1832.1,6.7576]
[1746165368560,3.6563592,1832.2,1832.1,6.7576]
[1746165369561,5.2748592,1832.2,1832.1,6.7576]
[1746165369858,6.3661692,1832.2,1832.1,6.7576]
[1746165370055,5.2748592,1832.2,1832.1,6.7576]
[1746165370362,6.3661692,1832.2,1832.1,6.7576]
[1746165374254,10.2748592,1832.2,1831.8,1.6429]
[1746165374460,4.29928,1831.9,1831.8,1.6429]
[1746165375057,13.26428,1831.9,1831.7,1.09157]
[1746165375263,2.72917,1831.6,1830.4,7.1728]
[1746165375559,3.2078,1831.2,1831.1,1.09196]
[1746165375959,5.8968,1831.4,1831.0,1.09197]
[1746165376158,3.2078,1831.2,1831.1,1.3238]
[1746165376358,3.2078,1831.2,1831.1,4.05866]
[1746165376551,3.2078,1831.2,1831.1,2.9667]
[1746165376756,4.805,1831.4,1831.1,2.9667]
[1746165376957,3.2078,1831.3,1831.2,1.7288]
[1746165377865,3.2078,1831.3,1831.2,2.8207]
[1746165380372,3.2078,1831.3,1831.2,6.8087]
[1746165380671,5.99863,1831.7,1831.4,1.09177]
[1746165380869,1.6992,1831.6,1831.5,1.7037]
[1746165382369,1.6992,1831.6,1831.5,2.79542]
[1746165382874,3.2078,1831.7,1831.6,1.09166]
[1746165383172,3.2078,1831.7,1831.6,4.15006]
[1746165384367,3.2078,1831.7,1831.4,1.09175]
[1746165384368,4.29945,1831.7,1831.4,1.09175]
[1746165384575,3.2078,1831.5,1831.4,1.7204]
[1746165384967,4.8244,1831.5,1831.4,1.7204]
[1746165385171,5.91612,1831.5,1831.4,1.7204]
[1746165385573,5.91612,1831.5,1831.3,1.338]
[1746165385775,2.70839,1831.4,1831.1,5.08091]
[1746165385977,3.2078,1831.3,1831.2,2.9899]
[1746165386476,3.2078,1831.3,1831.2,4.0818]
[1746165386978,8.2078,1831.3,1830.8,1.09212]
[1746165387166,3.2078,1830.9,1830.8,1.09212]
[1746165387371,1.09199,1831.1,1831.0,1.092]
[1746165387372,3.2078,1831.1,1831.0,1.092]
[1746165387572,3.2078,1831.1,1830.9,1.09204]
[1746165387880,3.2078,1831.1,1831.0,1.6892]
[1746165388081,4.8826,1831.1,1831.0,1.6892]
[1746165388380,1.09205,1831.0,1830.7,2.39288]
[1746165388576,2.76685,1831.0,1830.8,1.6892]
[1746165388877,3.2078,1830.9,1830.7,2.39288]
[1746165389178,3.2078,1830.9,1830.8,1.5953]
[1746165389375,4.29988,1830.9,1830.8,1.5953]
[1746165389579,1.0922,1830.7,1830.5,3.33874]
[1746165389779,3.2078,1830.6,1830.5,3.33874]
[1746165389971,1.7002,1830.6,1830.5,44.13874]
[1746165390481,1.7002,1830.6,1830.5,3.33874]
[1746165390678,4.908,1830.6,1830.5,3.33874]
[1746165390981,4.908,1830.6,1830.5,4.43106]
[1746165391181,5.8476,1830.8,1830.5,4.93404]
[1746165391381,5.8476,1830.8,1830.6,1.5953]
[1746165391575,5.8476,1830.8,1830.6,2.68756]
[1746165391878,3.2078,1830.8,1830.7,1.0922]
[1746165392180,3.2078,1830.8,1830.7,4.0717]
[1746165392882,1.7002,1830.9,1830.7,4.0717]
[1746165393081,1.7002,1830.9,1830.8,1.7295]
[1746165393282,2.7923,1830.9,1830.7,1.25]
[1746165393682,4.8041,1830.8,1830.7,2.3422]
[1746165393882,4.8041,1830.8,1830.7,1.25]
[1746165394083,1.5963,1830.8,1830.7,2.3422]
[1746165394284,1.5963,1830.8,1830.7,4.0717]
[1746165394585,4.29987,1831.0,1830.7,4.0717]
[1746165394784,1.5963,1830.9,1830.8,1.7295]
[1746165395485,1.5963,1830.9,1830.8,2.82164]
[1746165395687,3.81263,1831.2,1830.9,1.09208]
[1746165395986,3.2078,1831.0,1830.9,2.78188]
[1746165396177,3.2078,1831.0,1830.9,42.78188]
[1746165396377,4.8057,1831.4,1830.9,42.78188]
[1746165396580,3.2078,1831.2,1830.9,39.86173015]
[1746165396780,3.2078,1831.2,1831.0,1.09202]
[1746165397287,1.5979,1831.1,1831.0,1.09202]
[1746165399882,3.2078,1831.2,1831.1,1.09196]
[1746165400079,3.2078,1831.2,1831.1,2.34106]
[1746165400991,4.8873,1831.4,1831.3,1.09184]
[1746165401283,3.65505262,1831.4,1831.3,1.09184]
[1746165401488,2.62e-06,1831.4,1831.3,6.09184]
[1746165401688,4.4777,1831.9,1831.3,6.09184]
[1746165401689,4.04168,1831.9,1831.7,1.09157]
[1746165401988,1.6803,1831.8,1831.7,1.09157]
[1746165402490,1.09168,1831.6,1831.4,1.09175]
[1746165402680,4.3195,1831.5,1831.4,1.09175]
[1746165403096,4.3195,1831.5,1831.3,1.0918]
[1746165403283,1.6803,1831.4,1831.3,1.0918]
[1746165404083,2.77211,1831.4,1831.2,42.3853]
[1746165404287,5.97991,1831.4,1831.2,43.4772]
[1746165404490,1.7389,1831.3,1831.2,1.5853]
[1746165405690,1.7389,1831.3,1831.2,2.6772]
[1746165409493,2.83076,1831.3,1831.1,1.09194]
[1746165409692,3.2078,1831.2,1831.1,1.09193]
[1746165409888,1.7389,1831.3,1831.2,1.2689]
[1746165410286,2.83074,1831.3,1831.2,1.2689]
[1746165414091,3.27444276,1831.3,1831.2,1.2689]
[1746165416496,2.18260276,1831.3,1831.2,2.3608]
[1746165416794,3.27444276,1831.3,1831.2,1.2689]
[1746165417794,2.18260276,1831.3,1831.2,2.3608]
[1746165417995,2.18260276,1831.3,1831.2,4.0764]
[1746165418197,3.27444276,1831.3,1831.2,2.9845]
[1746165418796,0.44370276,1831.3,1831.2,4.0764]
[1746165419198,3.2078,1831.4,1831.3,1.09184]
[1746165419391,3.2078,1831.4,1831.3,2.74654]
[1746165420595,5.28929544,1831.5,1831.4,1.09178]
[1746165420799,5.28929544,1831.5,1831.4,2.74648]
[1746165421599,0.44425173,1831.5,1831.4,2.74648]
[1746165421801,1.6005,1831.6,1831.5,1.09172]
[1746165421999,1.6005,1831.6,1831.5,2.74642]
[1746165422192,1.6005,1831.6,1831.5,1.09172]
[1746165422393,5.25251263,1831.6,1831.5,1.09172]
[1746165422794,2.04471263,1831.6,1831.5,1.09172]
[1746165424301,2.04471263,1831.6,1831.5,2.78642]
[1746165424705,2.04471263,1831.6,1831.5,1.09172]
[1746165424896,5.25251263,1831.6,1831.5,1.09172]
[1746165425505,5.25251263,1831.6,1831.5,41.89172]
[1746165429505,3.2078,1831.6,1831.5,41.89172]
[1746165430009,3.65218522,1831.6,1831.5,41.89172]
[1746165430505,0.44438522,1831.6,1831.5,41.89172]
[1746165431011,1.6512,1831.7,1831.6,1.09166]
[1746165431202,2.0955954,1831.7,1831.6,4.03676]
[1746165432010,1.6512,1831.7,1831.6,4.03676]
[1746165432910,2.09559624,1831.7,1831.6,4.03676]
[1746165437618,0.44439624,1831.7,1831.6,4.03676]
[1746165438623,0.44439624,1831.7,1831.6,5.43836]
[1746165438818,4.9073,1831.8,1831.7,1.0916]
[1746165439013,4.9073,1831.8,1831.7,2.807]
[1746165439216,5.35161871,1831.8,1831.7,2.807]
[1746165442926,5.35161871,1831.8,1831.7,1.7154]
[1746165443123,5.35161871,1831.8,1831.7,1.0916]
[1746165444721,3.65211871,1831.8,1831.7,1.0916]
[1746165444923,3.65211871,1831.8,1831.7,2.7871]
[1746165445425,3.2078,1831.8,1831.7,2.7871]
[1746165446020,3.56409544,1831.9,1831.8,1.09154]
[1746165446219,3.56409544,1831.9,1831.8,2.78704]
[1746165446524,4.00910371,1831.9,1831.8,2.78704]
[1746165447930,4.00910371,1831.9,1831.8,7.78704]
[1746165448130,3.56409544,1831.9,1831.8,7.78704]
[1746165448430,6.77189544,1832.1,1832.0,1.09143]
[1746165448822,6.77189544,1832.1,1832.0,2.47783]
[1746165449023,7.21712545,1832.1,1832.0,2.47783]
[1746165450330,8.84752545,1832.1,1832.0,2.47783]
[1746165450731,5.63972545,1832.1,1832.0,2.47783]
[1746165451124,2.07563001,1832.1,1832.0,2.47783]
[1746165451525,1.6304,1832.1,1832.0,2.47783]
[1746165451722,3.2078,1832.3,1832.2,1.09131]
[1746165452032,5.28318178,1832.3,1832.2,1.09131]
[1746165454734,1.6304,1832.3,1832.2,1.09131]
[1746165455036,2.6656,1832.5,1832.4,1.09119]
[1746165455235,4.69334401,1832.5,1832.4,1.09119]
[1746165456337,3.37444401,1832.5,1832.4,1.09119]
[1746165456840,3.37444401,1832.5,1832.4,2.36939]
[1746165458237,3.37444401,1832.5,1832.4,1.09119]
[1746165458425,2.9297,1832.5,1832.4,1.09119]
[1746165459638,3.37401826,1832.5,1832.4,1.09119]
[1746165464843,3.37401826,1832.5,1832.4,2.70729]
[1746165464844,2.9297,1832.5,1832.4,2.70729]
[1746165468539,1.583,1832.5,1832.4,3.215079]
[1746165471747,1.583,1832.5,1832.4,2.70729]
[1746165471947,6.0035,1832.7,1832.4,2.70729]
[1746165471948,4.6027,1832.7,1832.6,1.09107]
[1746165472545,6.70860102,1832.7,1832.6,1.09107]
[1746165472747,6.70860102,1832.7,1832.6,2.37247]
[1746165474740,6.70860102,1832.7,1832.6,1.09107]
[1746165486746,6.70860102,1832.7,1832.5,1.7488]
[1746165486953,0.44460102,1832.6,1832.5,2.83993]
[1746165487250,6.264,1832.7,1832.6,1.09107]
[1746165487547,6.70966708,1832.7,1832.6,2.70127]
[1746165489651,6.70966708,1832.7,1832.6,1.09107]
[1746165490048,6.70966708,1832.7,1832.4,3.0718]
[1746165490351,2.07226708,1832.6,1832.5,1.0911]
[1746165493656,5.63636252,1832.6,1832.5,1.0911]
[1746165494657,5.63636252,1832.6,1832.5,1.09113]
[1746165496559,8.13284311,1832.6,1832.5,1.09113]
[1746165499250,9.92540187,1832.6,1832.5,1.09113]
[1746165502159,20.63205823,1832.6,1832.5,1.09113]
[1746165505663,8.17521836,1832.6,1832.5,1.09113]
[1746165506562,1.09114,1832.5,1832.3,4.91122]
[1746165506861,5.04056708,1832.4,1832.3,4.91122]
[1746165507661,6.69436708,1832.4,1832.3,4.91122]
[1746165508664,12.79731836,1832.4,1832.3,4.91122]
[1746165510958,12.79731836,1832.4,1832.3,3.82]
[1746165511263,13.88850836,1832.4,1832.2,2.38547]
[1746165511463,1.7119,1832.3,1832.2,2.38547]
[1746165511963,2.15756708,1832.3,1832.2,2.38547]
[1746165513765,8.26051836,1832.3,1832.2,2.38547]
[1746165516366,1.09131,1832.2,1832.1,39.86173015]
[1746165516564,5.34306708,1832.2,1832.1,40.95310015]
[1746165517061,6.43437708,1832.2,1832.1,40.95310015]
[1746165517373,5.34306708,1832.2,1832.1,40.95310015]
[1746165518767,13.19620187,1832.2,1832.1,40.95310015]
[1746165518968,13.19620187,1832.2,1832.1,33.99445802]
[1746165519171,12.75053479,1832.2,1832.1,35.74565802]
[1746165520168,9.54273479,1832.2,1832.1,35.74565802]
[1746165520371,4.8974,1832.2,1832.1,33.99445802]
[1746165520566,5.34221349,1832.2,1832.1,33.99445802]
[1746165521274,5.34221349,1832.2,1832.1,35.63885802]
[1746165522066,4.8974,1832.2,1832.1,35.63885802]
[1746165522368,5.34234581,1832.2,1832.1,35.63885802]
[1746165523173,3.65274581,1832.2,1832.1,35.63885802]
[1746165523369,3.2078,1832.2,1832.1,40.63885802]
[1746165523577,3.59825746,1832.3,1832.2,1.09131]
[1746165523873,3.59825746,1832.3,1832.2,4.02751]
[1746165524270,12.14929723,1832.6,1832.3,2.72812]
[1746165524271,2.51281841,1832.6,1832.3,2.72812]
[1746165524465,2.51281841,1832.6,1832.5,4.29893]
[1746165524665,2.51281841,1832.6,1832.5,9.29893]
[1746165524875,2.51281841,1832.6,1832.5,51.72473]
[1746165526379,1.6323,1833.0,1832.9,1.09089]
[1746165526672,4.8401,1833.0,1832.9,1.09089]
[1746165526975,5.28464,1833.0,1832.9,1.09089]
[1746165527165,0.44454,1833.0,1832.9,1.09089]
[1746165527367,0.44454,1833.0,1832.8,4.13822]
[1746165527674,1.7396,1832.9,1832.8,2.83132]
[1746165527875,4.4966,1832.9,1832.7,6.12167]
[1746165528075,4.4966,1832.9,1832.8,1.09095]
[1746165528574,4.4966,1832.9,1832.7,4.79296]
[1746165528776,1.5945,1832.8,1832.7,4.79296]
[1746165529173,1.5945,1832.8,1832.7,3.702]
[1746165529572,1.5945,1832.8,1832.5,42.1152]
[1746165529573,9.8023,1832.8,1832.5,40.8]
[1746165529774,3.2078,1832.6,1832.4,4.79015]
[1746165530277,2.9446,1832.5,1832.4,4.79015]
[1746165530480,2.9446,1832.5,1832.4,6.53015]
[1746165535073,3.2078,1832.6,1832.4,6.53015]
[1746165535275,3.2078,1832.6,1832.5,2.76483]
[1746165537984,3.2078,1832.6,1832.5,4.08213]
[1746165542392,1.591,1832.8,1832.7,1.09101]
[1746165544779,3.2078,1832.9,1832.8,1.09095]
[1746165544984,3.2078,1832.9,1832.8,2.68705]
[1746165545384,3.2078,1832.9,1832.8,4.08285]
[1746165546289,4.9467,1832.9,1832.8,4.08285]
[1746165555195,4.9467,1832.9,1832.8,2.68705]
[1746165556905,1.7389,1832.9,1832.8,2.68705]
[1746165558799,3.2078,1833.1,1833.0,1.09083]
[1746165558999,1.594,1833.2,1833.1,1.09077]
[1746165559602,2.03954638,1833.2,1833.1,1.09077]
[1746165563296,7.03954638,1833.2,1832.7,3.2078]
[1746165563493,3.2078,1832.8,1832.4,5.932]
[1746165563697,3.2078,1832.5,1832.4,33.99427802]
[1746165566799,3.2078,1832.5,1832.4,32.90308802]
[1746165567197,4.9636,1832.5,1832.4,32.90308802]
[1746165567704,4.9636,1832.5,1832.4,33.99427802]
[1746165569307,4.9636,1832.5,1832.4,35.58157802]
[1746165571203,4.9636,1832.5,1832.4,36.94957802]
[1746165571594,3.2078,1832.5,1832.4,36.94957802]
[1746165576715,3.2078,1832.8,1832.5,1.09113]
[1746165577007,1.662,1832.7,1832.6,2.68057]
[1746165578012,3.2078,1832.8,1832.7,1.09101]
[1746165579800,4.9538,1832.8,1832.7,1.09101]
[1746165580310,3.2078,1832.8,1832.7,33.99409802]
[1746165580509,3.2078,1832.8,1832.7,35.38319802]
[1746165581604,1.6894,1832.9,1832.8,1.09095]
[1746165581809,1.6894,1832.9,1832.8,33.99403802]
[1746165585102,2.13413874,1832.9,1832.8,33.99403802]
[1746165585298,2.13413874,1832.9,1832.8,32.90308802]
[1746165585505,2.13413874,1832.9,1832.8,33.99403802]
[1746165588913,8.22502874,1832.9,1832.8,32.90308802]
[1746165589113,12.36521305,1832.9,1832.8,32.90308802]
[1746165592017,20.2519711,1832.9,1832.8,19.40262029]
[1746165592219,20.25236258,1832.9,1832.8,19.40262029]
[1746165592816,15.25236258,1832.9,1832.8,19.40262029]
[1746165593321,8.0612513,1832.9,1832.8,19.40262029]
[1746165595320,8.0612513,1832.9,1832.5,3.694]
[1746165595321,1.09107,1832.6,1832.5,3.694]
[1746165595519,4.74360874,1832.6,1832.5,3.694]
[1746165595720,1.09118,1832.5,1832.3,43.52973]
[1746165596020,4.19848,1832.5,1832.4,20.89]
[1746165596223,4.64321874,1832.5,1832.4,20.89]
[1746165600327,10.08768531,1832.5,1832.4,20.89]
[1746165600722,13.77568531,1832.5,1832.4,19.68501]
[1746165600921,13.77568531,1832.5,1832.4,16.93377]
[1746165601122,17.94793844,1832.5,1832.4,15.53067]
[1746165601321,17.94793844,1832.5,1832.4,3.09034]
[1746165601523,17.94793844,1832.5,1832.4,1.62454]
[1746165601726,3.2078,1832.3,1831.4,1.09176]
[1746165601923,4.29952,1831.5,1831.4,1.5998]
[1746165602126,3.2078,1831.5,1831.2,1.4346]
[1746165602332,4.29964,1831.3,1831.1,2.69174]
[1746165602629,1.0919,1831.2,1831.1,1.4107]
[1746165602824,3.2078,1831.3,1831.1,1.4107]
[1746165603028,2.43161,1831.4,1831.2,1.09189]
[1746165603225,4.29964,1831.3,1831.2,1.4107]
[1746165603423,1.09191,1831.2,1831.0,26.5635667]
[1746165603629,3.2078,1831.3,1831.0,27.0713467]
[1746165603830,1.7283,1831.6,1831.2,2.72976]
[1746165604032,3.2078,1831.7,1831.5,1.09169]
[1746165604323,3.2078,1831.7,1831.6,1.5998]
[1746165604631,9.6933372,1831.7,1831.6,1.5998]
[1746165604930,10.3300372,1831.7,1831.3,7.55214]
[1746165605129,3.2078,1831.5,1831.4,1.09178]
[1746165605326,3.2078,1831.5,1831.4,2.77168]
[1746165606127,4.29952,1831.5,1831.4,1.6799]
[1746165606332,3.2078,1831.5,1831.4,1.6799]
[1746165606528,3.2078,1831.5,1831.4,2.77168]
[1746165606931,5.3939372,1831.7,1831.6,1.09166]
[1746165607230,14.92046643,1831.9,1831.8,1.09154]
[1746165607231,7.17357491,1831.9,1831.8,1.09154]
[1746165607436,4.29919,1832.1,1831.7,4.18296]
[1746165607732,4.29928,1831.9,1831.8,8.9]
[1746165607926,4.29928,1831.9,1831.8,12.59]
[1746165608127,7.99528,1831.9,1831.8,12.59]
[1746165608327,9.71488,1831.9,1831.8,8.9]
[1746165609735,9.71488,1831.9,1831.4,1.4115]
[1746165609736,14.06551042,1831.9,1831.3,3.69]
[1746165609932,3.2078,1831.4,1830.9,5.0456]
[1746165610234,3.2078,1831.1,1831.0,1.092]
[1746165610428,3.2078,1831.1,1831.0,2.6852]
[1746165610629,3.2078,1831.1,1831.0,1.5932]
[1746165610824,3.2078,1831.1,1831.0,2.68522]
[1746165611030,3.2078,1831.1,1831.0,1.09202]
[1746165611432,3.2078,1831.1,1830.9,2.72816]
[1746165611641,3.2078,1831.1,1831.0,1.09202]
[1746165611826,4.8899,1831.1,1831.0,1.09202]
[1746165612329,4.8899,1831.1,1831.0,2.73232]
[1746165612638,5.98186,1831.1,1831.0,1.6403]
[1746165612837,5.98186,1831.1,1830.9,2.68536]
[1746165613038,1.6821,1831.0,1830.9,2.68536]
[1746165613241,1.6821,1831.0,1830.8,1.6403]
[1746165613439,3.2078,1830.9,1830.8,2.73239]
[1746165614334,3.2078,1831.1,1830.8,1.6403]
[1746165614638,3.2078,1831.1,1831.0,1.09202]
[1746165614840,3.2078,1831.1,1830.9,1.09204]
[1746165615035,4.29978,1831.1,1830.8,2.7324]
[1746165615237,3.2078,1830.9,1830.8,2.7324]
[1746165615535,3.2078,1830.9,1830.8,1.6403]
[1746165615730,3.2078,1830.9,1830.7,8.071]
[1746165615731,4.2999,1830.9,1830.7,8.071]
[1746165615931,1.6366,1830.8,1830.7,9.1632]
[1746165616136,1.6366,1830.8,1830.7,8.071]
[1746165616330,1.6366,1830.8,1830.7,6.4774]
[1746165616838,1.6366,1830.8,1830.7,7.5696]
[1746165617237,1.6366,1830.8,1830.7,9.1541]
[1746165617438,1.6366,1830.8,1830.7,6.7063]
[1746165617640,1.6366,1830.8,1830.7,4.1085]
[1746165618738,4.6067,1830.9,1830.8,1.09214]
[1746165618739,3.2078,1830.9,1830.8,1.09214]
[1746165618935,3.2078,1830.9,1830.8,1.5845]
[1746165619132,4.29993,1830.9,1830.6,3.00414]
[1746165619331,2.9982,1830.8,1830.6,3.00414]
[1746165619528,5.9922,1830.7,1830.6,1.9119]
[1746165619936,1.09226,1830.6,1830.5,3.33874]
[1746165620136,2.77286,1830.6,1830.5,3.33874]
[1746165620841,6.9038,1830.7,1830.6,1.09226]
[1746165621039,6.9038,1830.7,1830.6,2.68176]
[1746165621239,3.2078,1830.7,1830.6,2.68176]
[1746165621433,3.2078,1831.0,1830.9,1.09206]
[1746165621742,3.2078,1831.2,1830.7,6.1826]
[1746165621943,1.6806,1831.3,1831.2,1.0919]
[1746165622333,1.6806,1831.3,1831.0,1.5895]
[1746165622537,1.6806,1831.3,1831.2,1.0919]
[1746165622732,1.6806,1831.3,1831.1,1.09193]
[1746165622938,2.77245,1831.3,1831.1,1.09193]
[1746165623338,1.6058,1831.2,1831.1,1.09193]
[1746165623539,1.6058,1831.2,1831.0,2.68147]
[1746165623839,1.6058,1831.2,1831.1,1.09196]
[1746165624844,1.6058,1831.2,1831.0,2.68148]
[1746165625140,2.6977,1831.2,1831.0,2.68148]
[1746165625446,2.69772,1831.2,1831.0,2.68148]
[1746165625645,1.6058,1831.2,1831.0,1.5895]
[1746165625840,1.6058,1831.2,1831.1,1.09196]
[1746165626141,2.69772,1831.2,1831.0,2.6815]
[1746165626350,1.09214,1830.8,1830.5,3.33874]
[1746165626645,4.8435,1831.1,1830.5,7.7451]
[1746165626838,3.686,1831.3,1830.9,1.09208]
[1746165626839,1.6357,1831.0,1830.9,1.09208]
[1746165627045,1.6357,1831.0,1830.8,1.0921]
[1746165627246,2.72772,1831.0,1830.9,1.6756]
[1746165627447,1.09214,1830.8,1830.7,3.686]
[1746165628247,1.6357,1830.8,1830.7,3.686]
[1746165628635,1.6357,1830.8,1830.7,4.7782]
[1746165628835,1.6357,1830.8,1830.7,3.686]
[1746165629045,2.72784,1830.8,1830.7,3.686]
[1746165629448,1.0922,1830.7,1830.6,1.6756]
[1746165629645,1.0922,1830.7,1830.5,4.43101]
[1746165629646,1.09226,1830.6,1830.5,3.33874]
[1746165630047,6.41497403,1830.7,1830.5,3.33874]
[1746165630247,2.11496403,1830.7,1830.6,1.09226]
[1746165630447,1.6715,1830.7,1830.6,2.69446]
[1746165631850,1.3803,1830.8,1830.7,1.0922]
[1746165632149,1.6715,1830.8,1830.7,1.6022]
[1746165632351,1.6715,1830.8,1830.7,2.6944]
[1746165632543,2.48258,1830.9,1830.7,2.6944]
[1746165632741,4.17028,1830.9,1830.8,1.6138]
[1746165632944,4.61387656,1830.9,1830.8,1.6138]
[1746165633651,3.52179656,1830.9,1830.8,2.70594]
[1746165633854,3.52179656,1830.9,1830.8,1.6138]
[1746165634048,3.52179656,1830.9,1830.8,2.70594]
[1746165634355,3.0782,1830.9,1830.8,2.70594]
[1746165635354,3.2078,1831.0,1830.8,4.06209]
[1746165635545,4.8125,1831.0,1830.9,1.7194]
[1746165635741,4.8125,1831.0,1830.9,2.81148]
[1746165635742,3.2078,1831.0,1830.9,2.81148]
[1746165636053,4.5752,1831.2,1831.1,1.09196]
[1746165636352,1.0917,1831.6,1831.1,6.8938]
[1746165636650,3.2078,1831.8,1831.4,4.29958]
[1746165636651,0.44397749,1831.5,1831.4,4.29958]
[1746165636952,9.99558326,1832.0,1831.4,11.8938]
[1746165637144,9.99558326,1832.0,1831.7,3.2078]
[1746165637348,8.90415326,1832.0,1831.8,1.7194]
[1746165637545,1.6047,1831.9,1831.8,1.7194]
[1746165638054,2.69618,1831.9,1831.8,1.7194]
[1746165638352,1.6047,1831.9,1831.8,1.7194]
[1746165638755,2.69618,1831.9,1831.8,1.7194]
[1746165640351,1.0916,1831.7,1831.6,1.4293]
[1746165641049,2.6875,1831.7,1831.6,1.4293]
[1746165641555,1.09166,1831.6,1831.5,4.9102]
[1746165641740,1.09178,1831.4,1831.3,5.8647]
[1746165641945,1.09178,1831.4,1831.3,3.2078]
[1746165642758,1.09175,1831.5,1831.3,4.29964]
[1746165643956,1.09175,1831.5,1831.3,4.29961]
[1746165644151,1.09175,1831.5,1831.4,1.6476]
[1746165650360,1.09178,1831.4,1831.3,5.119]
[1746165650860,1.09178,1831.4,1831.3,3.2078]
[1746165651055,1.09178,1831.4,1831.3,4.8252]
[1746165651251,1.09181,1831.4,1831.3,3.2078]
[1746165651855,1.09181,1831.4,1831.3,4.8252]
[1746165652361,1.09177,1831.5,1831.3,5.91704]
[1746165652655,1.6277,1831.6,1831.4,1.09173]
[1746165652855,1.6277,1831.6,1831.5,1.09172]
[1746165653259,2.7194,1831.6,1831.4,4.267]
[1746165653450,2.7194,1831.6,1831.5,1.6174]
[1746165659064,2.7194,1831.6,1831.5,2.70912]
[1746165659265,2.7194,1831.6,1831.5,1.6174]
[1746165660164,2.7194,1831.6,1831.5,2.70912]
[1746165660361,1.3402,1831.9,1831.5,11.3105]
[1746165660568,3.0037,1831.9,1831.8,4.29934]
[1746165660863,1.6635,1831.9,1831.8,4.29934]
[1746165661566,2.75498,1831.9,1831.8,4.29934]
[1746165662266,1.6635,1831.9,1831.8,4.29934]
[1746165662567,1.6635,1831.9,1831.8,5.69344]
[1746165662865,1.6635,1831.9,1831.8,7.11614]
[1746165663257,3.58827448,1832.0,1831.9,1.09148]
[1746165663455,3.58827448,1832.0,1831.9,2.78438]
[1746165664666,1.6808,1832.3,1832.1,1.09137]
[1746165664867,1.6808,1832.3,1832.1,4.29917]
[1746165665068,8.90415326,1832.4,1832.1,4.29917]
[1746165665758,8.90415326,1832.4,1832.1,13.05517]
[1746165666465,8.90415326,1832.4,1832.1,8.05517]
[1746165666670,8.90415326,1832.4,1832.1,48.85517]
[1746165670474,1.7263,1832.3,1832.1,47.7638]
[1746165670774,1.09139,1832.1,1831.9,3.2078]
[1746165670961,4.4569,1832.1,1832.0,1.09143]
[1746165671471,4.4569,1832.1,1831.9,6.01535]
[1746165671775,1.7127,1832.0,1831.9,6.01535]
[1746165673463,1.7127,1832.0,1831.9,4.29925]
[1746165675872,2.80413,1832.0,1831.9,3.2078]
[1746165676075,2.80413,1832.0,1831.8,46.46533]
[1746165676371,1.6919,1831.9,1831.8,46.46533]
[1746165677466,1.6919,1831.9,1831.8,48.05533]
[1746165679984,2.7306,1832.1,1832.0,1.09143]
[1746165680177,4.4679,1832.1,1832.0,4.29923]